Cogmind - Beta 10.2 @@@ ROGUE MODE // 2021.11.02 @ 20:06:06 Player: Dizzar Result: Self-destructed Performance ------------- Evolutions (2) 1000 Regions Visited (7) 1400 Robots Destroyed (39) 195 Value Destroyed (1108) 1108 Prototype IDs (23) 460 Alien Tech Used (0) 0 Bonus (339) 339 TOTAL SCORE: 4502 Bonus ------- Follower Combat Kills 39 Aligned with FarCom 300 Cogmind --------- Core Integrity 532/550 Matter 8/300 Energy 100/100 System Corruption 1% Temperature Cool (0) Movement Core (1900) Ox37 Location -8/Materials Parts ------- > --- POWER (1) -------- (None) > --- PROPULSION (3) --- (None) > --- UTILITY (5) ------ Large Storage Unit Large Storage Unit Humpback > --- WEAPON (2) ------- (None) > --- INVENTORY (36) --- Aluminum Leg Airjet Faulty Improved VTOL Module Small Storage Unit Medium Storage Unit Medium Storage Unit Advanced Visual Processing Unit Transmission Jammer Hardened Light Armor Plating Hardlight Generator Hacking Suite Trap Reconfigurator Electrolaser Electrolaser Minigun Mini Grenade Launcher Peak State ------------ > --- POWER ------------ (None) > --- PROPULSION ------- Aluminum Leg Aluminum Leg > --- UTILITY ---------- Large Storage Unit Large Storage Unit Humpback Trap Reconfigurator > --- WEAPON ----------- (None) > --- INVENTORY -------- Improved VTOL Module Small Storage Unit Medium Storage Unit Medium Storage Unit Advanced Visual Processing Unit Transmission Jammer Hardened Light Armor Plating Hardlight Generator Hacking Suite Electrolaser Electrolaser Minigun Mini Grenade Launcher [Rating: 18] Favorites ----------- Power Ion Engine Engine Ion Engine Propulsion Light Treads Treads Light Treads Leg Aluminum Leg Utility Large Storage Unit Device Trap Reconfigurator Storage Large Storage Unit Weapon Assault Rifle Energy Gun EM Pulse Gun Ballistic Gun Assault Rifle Ballistic Cannon Light Cannon Launcher Mini Grenade Launcher Build | -11 -10 -10 -9 -9 -9 -8 -8 ------- Run | Scr Mat Min Mat Min Exi Min Mat Slots Evolved 4 | . . . 2 . . . 2 Power . | . . . . . . . . Propulsion 1 | . . . . . . . 1 Utility 3 | . . . 2 . . . 1 Weapon . | . . . . . . . . Parts Attached 21 | 7 3 4 2 3 1 . 1 Power 2 | 1 1 . . . . . . Engine 2 | 1 1 . . . . . . Core . | . . . . . . . . Reactor . | . . . . . . . . Propulsion 6 | 2 . 2 . 2 . . . Treads 4 | 2 . 2 . . . . . Leg 2 | . . . . 2 . . . Wheel . | . . . . . . . . Hover . | . . . . . . . . Flight . | . . . . . . . . Utility 7 | 2 1 . 2 . 1 . 1 Device 1 | . . . . . . . 1 Storage 6 | 2 1 . 2 . 1 . . Processor . | . . . . . . . . Hackware . | . . . . . . . . Protection . | . . . . . . . . Artifact . | . . . . . . . . Weapon 6 | 2 1 2 . 1 . . . Energy Gun 2 | 1 1 . . . . . . Energy Cannon . | . . . . . . . . Ballistic Gun 1 | 1 . . . . . . . Ballistic Cannon 1 | . . 1 . . . . . Launcher 2 | . . 1 . 1 . . . Special Weapon . | . . . . . . . . Impact Weapon . | . . . . . . . . Slashing Weapon . | . . . . . . . . Piercing Weapon . | . . . . . . . . Special Melee Weapon . | . . . . . . . . Unidentified Prototypes . | . . . . . . . . Parts Lost 12 | . 2 7 . 2 . 1 . Power 2 | . 1 1 . . . . . Propulsion 4 | . . 3 . 1 . . . Utility . | . . . . . . . . Weapon 6 | . 1 3 . 1 . 1 . Highest Loss Streak 4 | . 2 4 . 2 . 1 . Average Slot Usage (%) 70 | . 100 82 44 46 57 63 43 Engine 5 | . 14 8 . . . . . Treads 14 | . 28 25 11 7 . . . Leg 7 | . . . . 4 22 22 15 Storage 26 | . 28 28 22 22 24 33 27 Energy Gun 4 | . 14 4 . . . . . Ballistic Gun 4 | . 14 4 . . . . . Ballistic Cannon 2 | . . 5 11 8 . . . Launcher 3 | . . 3 . 3 11 8 . Naked Turns . | . . . . . . . . Heaviest Build 113 | 17 21 21 35 36 113 113 113 Greatest Support 40 | 40 40 40 20 20 20 20 20 Greatest Overweight (x) 37 | . . . 1 3 5 5 37 Average Overweight (x) 1 | . . . . 1 1 5 5 Largest Inventory Capacity 36 | 8 10 10 16 16 36 36 36 Average Capacity 16 | 5 9 10 15 16 19 36 36 Most Carried 16 | 5 9 10 9 9 10 8 16 Average Carried 8 | 2 6 8 8 8 7 8 12 Final Capacity 36 | 8 10 10 16 16 36 36 36 Final Carried 16 | 4 7 7 9 7 8 8 16 Class Distribution -------------------- 77% | Mutant 22% | Hauler-Mutant Dominant Class ---------------- Mutant | -10/Materials Mutant | -10/Mines Mutant | -9/Materials Mutant | -9/Mines Mutant | -9/Exiles Hauler-Mutant | -8/Mines Hauler-Mutant | -8/Materials Resources | -11 -10 -10 -9 -9 -9 -8 -8 ----------- Run | Scr Mat Min Mat Min Exi Min Mat Matter Collected 571 | 238 105 159 . 58 . 11 . Remotely . | . . . . . . . . Salvage Created 860 | 92 332 195 46 129 . 66 . Parts 67 | 2 28 16 3 15 . 3 . Haulers Intercepted 1 | . 1 . . . . . . Recyclers Shooed . | . . . . . . . . Parts Field Recycled . | . . . . . . . . Retrieved Matter . | . . . . . . . . Parts Self-Destructed . | . . . . . . . . Prevented . | . . . . . . . . Kills | -11 -10 -10 -9 -9 -9 -8 -8 ------- Run | Scr Mat Min Mat Min Exi Min Mat Combat Hostiles Destroyed 52 | . 12 27 1 9 . 3 . Guns 13 | . 10 3 . . . . . Cannons 7 | . . 4 1 2 . . . AOE 32 | . 2 20 . 7 . 3 . Classes Destroyed 10 | 1 4 3 . . . 2 . Worker 1 | . . . . . . 1 . Tunneler 1 | . . 1 . . . . . Hauler 1 | . 1 . . . . . . Recycler 1 | 1 . . . . . . . Operator 2 | . 1 . 1 . . . . Swarmer 17 | . 9 4 . 4 . . . Grunt 13 | . 3 2 1 5 . 2 . Duelist 1 | . . . . . . 1 . Demolisher 2 | . . 2 . . . . . Assembled 19 | . . 19 . . . . . Best Kill Streak 18 | 1 3 18 1 5 . 4 . Combat Bots Only 17 | . 3 17 1 5 . 3 . Max Kills in Single Turn 4 | 1 2 4 1 4 . 2 . Gunslinging 1 | . 1 . . . . . . Exploded 4 | . 1 4 . 4 . 2 . Melee . | . . . . . . . . Uniques/NPCs Destroyed . | . . . . . . . . Combat | -11 -10 -10 -9 -9 -9 -8 -8 -------- Run | Scr Mat Min Mat Min Exi Min Mat Damage Taken 2138 | . 384 1085 . 117 . 472 80 Core 349 | . 46 193 . 15 . 77 18 Absorbed by Shields . | . . . . . . . . Core Remaining (%) 60 | 100 . 4 . . . 77 . Volleys Fired 101 | 3 39 37 3 12 . 7 . Largest 2 | 2 2 2 1 2 . 1 . Hottest 70 | 60 70 70 35 65 . 30 . Shots Fired 153 | 6 78 45 3 14 . 7 . Gun 100 | 6 78 16 . . . . . Cannon 29 | . . 21 3 5 . . . Launcher 24 | . . 8 . 9 . 7 . Special . | . . . . . . . . Kinetic 79 | 3 39 29 3 5 . . . Thermal 14 | . 6 8 . . . . . Explosive 24 | . . 8 . 9 . 7 . Electromagnetic 36 | 3 33 . . . . . . Robot Hit Streak 8 | 5 8 7 5 2 . 3 . Robot Miss Streak 5 | . 5 5 1 2 . 3 . Penetration Max . | . . . . . . . . Secondary Targets 3 | . 3 . . . . . . Max Gunslinging Chain 1 | . 1 . . . . . . Shots Hit Robots 77 | 5 43 21 2 3 . 3 . Core Hits 103 | 2 18 54 2 13 . 14 . Critical Hits . | . . . . . . . . Critical Kills . | . . . . . . . . Critical Parts Destroyed . | . . . . . . . . Melee Attacks . | . . . . . . . . Impact . | . . . . . . . . Slashing . | . . . . . . . . Piercing . | . . . . . . . . Sneak Attacks . | . . . . . . . . Combat Hostiles . | . . . . . . . . Follow-up Attacks . | . . . . . . . . Damage Inflicted 3616 | 60 633 1701 50 739 . 433 . Guns 736 | 60 569 107 . . . . . Cannons 279 | . . 191 50 38 . . . Explosions 2601 | . 64 1403 . 701 . 433 . Melee . | . . . . . . . . Ramming . | . . . . . . . . Kinetic 577 | 20 221 248 50 38 . . . Thermal 559 | . 114 191 . 254 . . . Explosive 2142 | . . 1262 . 447 . 433 . Electromagnetic 338 | 40 298 . . . . . . Impact . | . . . . . . . . Slashing . | . . . . . . . . Piercing . | . . . . . . . . Highest Corruption 1 | . . . . . . . 1 Average Corruption 1 | . . . . . . . 1 Corruption Purged . | . . . . . . . . Effects 1 | . . . . . . . 1 Energy Discharges 1 | . . . . . . . 1 Overload Shots . | . . . . . . . . Overflow Damage 86 | . . 43 . 30 . 13 . Projectiles 8 | . . 8 . . . . . Explosions 78 | . . 35 . 30 . 13 . Melee . | . . . . . . . . Knockbacks 3 | . . 3 . . . . . Impact . | . . . . . . . . Kinetic 3 | . . 3 . . . . . Secondary . | . . . . . . . . Self-Inflicted Damage 161 | . 38 75 . . . 48 . Shots 7 | . 1 3 . . . 3 . Rammed . | . . . . . . . . Targets Rammed . | . . . . . . . . Kicked . | . . . . . . . . Crushed . | . . . . . . . . Highest Temperature 69 | . 36 69 . . . . . Average Temperature 19 | . 16 24 . . . . . Received Heat Transfer 233 | . 54 53 . 72 . 9 45 Siege Activations . | . . . . . . . . Robots Corrupted . | . . . . . . . . Combat Hostiles . | . . . . . . . . Parts Fried 1 | . 1 . . . . . . Impact Corruptions . | . . . . . . . . Robots Melted . | . . . . . . . . Combat Hostiles . | . . . . . . . . Parts Melted . | . . . . . . . . Heat Transferred 846 | . 198 348 . 300 . . . Parts Sabotaged . | . . . . . . . . Parts Stolen . | . . . . . . . . Parts Stripped . | . . . . . . . . Power Chain Reactions 2 | . 2 . . . . . . Missiles Intercepted . | . . . . . . . . Alert | -11 -10 -10 -9 -9 -9 -8 -8 ------- Run | Scr Mat Min Mat Min Exi Min Mat Peak Influence 376 | 5 224 373 133 376 . 129 61 Initial 68 | . 3 67 68 51 . . 46 Average 125 | 1 119 177 91 211 . 38 52 Maximum Alert Level 1 | . 1 1 . 1 . . . Low Security (%) 84 | 100 89 81 100 39 . 100 100 Level 1 15 | . 10 18 . 60 . . . Level 2 . | . . . . . . . . Level 3 . | . . . . . . . . Level 4 . | . . . . . . . . Level 5 . | . . . . . . . . High Security . | . . . . . . . . Max Security . | . . . . . . . . Squads Dispatched 5 | . 4 . 1 . . . . Investigation 2 | . 2 . . . . . . Extermination . | . . . . . . . . Reinforcement 3 | . 2 . 1 . . . . Assault . | . . . . . . . . Garrison . | . . . . . . . . Intercept . | . . . . . . . . Construction Impeded . | . . . . . . . . Haulers Reinforced . | . . . . . . . . Stealth | -11 -10 -10 -9 -9 -9 -8 -8 --------- Run | Scr Mat Min Mat Min Exi Min Mat Distress Signals 2 | . 2 . . . . . . Communications Jammed . | . . . . . . . . Distress Signals . | . . . . . . . . Times Spotted 62 | . 20 28 3 5 . 4 2 Peak Tracking Total 13 | . 4 13 2 3 . 3 1 Tactical Retreats 1 | . . 1 . . . . . Traps | -11 -10 -10 -9 -9 -9 -8 -8 ------- Run | Scr Mat Min Mat Min Exi Min Mat Traps Triggered 4 | . 2 . . . . . 2 Indirectly . | . . . . . . . . Trap Hack Attempts . | . . . . . . . . Triggered . | . . . . . . . . Disarmed . | . . . . . . . . Reprogrammed . | . . . . . . . . Reused . | . . . . . . . . Traps Reconfigurated 3 | . . . . . . . 3 Traps Extracted . | . . . . . . . . Installed . | . . . . . . . . Triggered 1 | . . 1 . . . . . Machines | -11 -10 -10 -9 -9 -9 -8 -8 ---------- Run | Scr Mat Min Mat Min Exi Min Mat Machines Disabled 23 | . 3 10 . 9 . 1 . Max in Single Turn 10 | . 2 10 . 9 . 1 . Machines Sabotaged . | . . . . . . . . Garrisons Compromised . | . . . . . . . . Overloaded Fab Kills . | . . . . . . . . Fab Network Shutdowns . | . . . . . . . . Hacking | -11 -10 -10 -9 -9 -9 -8 -8 --------- Run | Scr Mat Min Mat Min Exi Min Mat Machines Accessed 9 | . 4 1 . . 2 . 2 Terminals 5 | . 4 . . . . . 1 Fabricators . | . . . . . . . . Repair Stations . | . . . . . . . . Recycling Units 1 | . . . . . . . 1 Scanalyzers . | . . . . . . . . Garrison Access . | . . . . . . . . Total Hacks 20 | . 12 1 . . 2 . 5 Successful 11 | . 4 1 . . 2 . 4 Failed 9 | . 8 . . . . . 1 Catastrophic 1 | . 1 . . . . . . Database Lockouts . | . . . . . . . . Manual 15 | . 12 . . . 1 . 2 Terminals 14 | . 12 . . . . . 2 Fabricators . | . . . . . . . . Repair Stations . | . . . . . . . . Recycling Units 3 | . . . . . . . 3 Scanalyzers . | . . . . . . . . Garrison Access . | . . . . . . . . Terminal Hacks 5 | . 2 1 . . 2 . . Record 1 | . . . . . 1 . . Open Door 1 | . . 1 . . . . . Branch Access Points 1 | . 1 . . . . . . Terminal Index 1 | . 1 . . . . . . EX-Prototype ID Bank 1 | . . . . . 1 . . Fabricator Hacks . | . . . . . . . . Repair Station Hacks . | . . . . . . . . Recycling Unit Hacks 3 | . . . . . . . 3 Process 1 | . . . . . . . 1 Retrieve Matter 2 | . . . . . . . 2 Scanalyzer . | . . . . . . . . Garrison Access Hacks . | . . . . . . . . Unauthorized Hacks 3 | . 2 . . . . . 1 Terminals 3 | . 2 . . . . . 1 Botnet 3 | . 2 . . . . . 1 Fabricators . | . . . . . . . . Repair Stations . | . . . . . . . . Recycling Units . | . . . . . . . . Scanalyzers . | . . . . . . . . Garrison Access . | . . . . . . . . Data Cores Recovered . | . . . . . . . . Used . | . . . . . . . . Hacking Detections 4 | . 3 . . . . . 1 Full Trace Events 1 | . 1 . . . . . . Feedback Events . | . . . . . . . . Feedback Blocked . | . . . . . . . . Robot Schematics Acquired . | . . . . . . . . Robots Built . | . . . . . . . . Matter . | . . . . . . . . Time . | . . . . . . . . Total Robot Build Rating . | . . . . . . . . Part Schematics Acquired . | . . . . . . . . Parts Built . | . . . . . . . . Matter . | . . . . . . . . Time . | . . . . . . . . Total Part Build Rating . | . . . . . . . . Parts Repaired . | . . . . . . . . Time . | . . . . . . . . Parts Recycled . | . . . . . . . . Recycled Matter 1 | . . . . . . . 1 Retrieved Matter 1 | . . . . . . . 1 Retrieved Components . | . . . . . . . . Parts Scanalyzed . | . . . . . . . . Part Schematics Acquired . | . . . . . . . . Parts Damaged . | . . . . . . . . Bothacking | -11 -10 -10 -9 -9 -9 -8 -8 ------------ Run | Scr Mat Min Mat Min Exi Min Mat Used RIF Installer . | . . . . . . . . Robots Hacked . | . . . . . . . . Non-combat . | . . . . . . . . Combat . | . . . . . . . . Robot Hacks Applied . | . . . . . . . . Relay Couplers Released . | . . . . . . . . Robots Rewired . | . . . . . . . . Allies Hacked . | . . . . . . . . Hacks Repelled . | . . . . . . . . Allies | -11 -10 -10 -9 -9 -9 -8 -8 -------- Run | Scr Mat Min Mat Min Exi Min Mat Total Allies 3 | . . 3 . . . . . Largest Group 3 | . . 3 . . . . . Highest-Rated Group 40 | . . 40 . . . . . Highest-Rated Ally 16 | . . 16 . . . . . Total Orders . | . . . . . . . . Ally Attacks 12 | . . 12 . . . . . Total Damage 123 | . . 123 . . . . . Kills 4 | . . 4 . . . . . Allies Corrupted . | . . . . . . . . Allies Melted . | . . . . . . . . Intel | -11 -10 -10 -9 -9 -9 -8 -8 ------- Run | Scr Mat Min Mat Min Exi Min Mat Robot Analysis Total . | . . . . . . . . Derelict Logs Recovered 1 | . . 1 . . . . . Drone Launches . | . . . . . . . . Drone Recoveries . | . . . . . . . . Exploration | -11 -10 -10 -9 -9 -9 -8 -8 ------------- Run | Scr Mat Min Mat Min Exi Min Mat Turns Passed 2688 | 109 552 734 102 258 417 162 354 Spaces Moved 1265 | 53 252 381 50 128 247 49 105 Core 8 | 6 . . . . . . 2 Treads 825 | 47 252 381 50 95 . . . Legs 432 | . . . . 33 247 49 103 Wheels . | . . . . . . . . Hover . | . . . . . . . . Flight . | . . . . . . . . Fastest Speed 50 | 50 160 160 160 150 150 270 270 Average Speed 178 | 147 160 160 178 175 164 270 301 Slowest Speed 1900 | 160 160 160 180 210 270 270 1900 Overloaded Moves . | . . . . . . . . Propulsion Burnouts . | . . . . . . . . Robots Hopped . | . . . . . . . . Cave-ins Triggered . | . . . . . . . . Exploration Rate (%) 35 | 4 53 85 8 41 60 15 14 Regions Visited 7 Branch Regions 4 Pre-discovered Areas 1 | . . . . . 1 . . Known Exits Taken 2 | . 1 . 1 . . . . Unknown Exits Taken 5 | 1 . 1 . 1 1 1 . Scrap Searched 2 | . . 1 . 1 . . . Spaces Dug . | . . . . . . . . Terrain Destroyed 241 | . 2 100 . 74 . 65 . Melee . | . . . . . . . . Projectile 1 | . . . . 1 . . . AOE 240 | . 2 100 . 73 . 65 . Terrain Rammed . | . . . . . . . . Walls Destroyed . | . . . . . . . . Machines Disabled . | . . . . . . . . Actions | -11 -10 -10 -9 -9 -9 -8 -8 --------- Run | Scr Mat Min Mat Min Exi Min Mat Total 1544 | 78 322 461 60 148 259 73 143 Wait 124 | 5 24 34 . 5 10 18 28 Move 1258 | 52 251 380 49 127 246 48 105 Hop . | . . . . . . . . Pick Up 36 | 11 5 5 4 1 2 . 8 Fast Attach . | . . . . . . . . Attach 18 | 7 2 4 . 3 1 . 1 Detach 1 | . . . . . . . 1 Swap 3 | . 1 . 2 . . . . Drop 3 | . . 1 2 . . . . Fire 101 | 3 39 37 3 12 . 7 . Melee . | . . . . . . . . Ram . | . . . . . . . . Kick . | . . . . . . . . Crush . | . . . . . . . . Escape Stasis . | . . . . . . . . Rewire . | . . . . . . . . Trap . | . . . . . . . . Miscellaneous . | . . . . . . . . Route ------- -11/Scrapyard -10/Materials (discovered 2 exits: [*Mat] / *Min) -10/Mines (discovered 2 exits: [*Mat x2]) -9/Materials -9/Mines (discovered 2 exits: *Mat / *Exi) -9/Exiles -8/Mines -8/Materials History --------- Turn | Location | Event 3 | -11/Scrapyard | Discovered new exit (range 15) 110 | -11/Scrapyard | Entered Materials 304 | -10/Materials | Build established: Mutant 459 | -10/Materials | Discovered new exit (range 3) 598 | -10/Materials | Identified exit to Mines 662 | -10/Materials | Entered Mines 669 | -10/Mines | Received a Rocket Launcher from a helpful Derelict 678 | -10/Mines | Assisted by bots powering up and referring to "LRC-V3" 731 | -10/Mines | Met a Derelict who couldn't figure out how to use a Trap Extractor 1100 | -10/Mines | Assembled infested the area 1142 | -10/Mines | Destroyed 17 combat bots 1143 | -10/Mines | Core integrity fell below 50% 1175 | -10/Mines | Lost 4 parts (1p2n1w) 1208 | -10/Mines | Learned 2 Materials zone layouts 1282 | -10/Mines | Core integrity fell below 20% 1379 | -10/Mines | Discovered new exit (range 6) 1387 | -10/Mines | Joined a pair of Derelicts in attacking an 0b10 outpost 1391 | -10/Mines | Discovered new exit (range 12) 1396 | -10/Mines | Entered Materials 1396 | -9/Materials | Evolved 2 slots: Utility x2 1397 | -9/Materials | Identified exit to Mines 1498 | -9/Materials | Entered Mines 1536 | -9/Mines | Discovered new exit (range 15) 1741 | -9/Mines | Found a hidden stash of uninstalled traps 1750 | -9/Mines | Deemed a non-threat by the Exiles lab entrance 1750 | -9/Mines | Discovered new exit (range 5) 1756 | -9/Mines | Entered Exiles 1792 | -9/Exiles | Met 8R-AWN 1815 | -9/Exiles | Met EX-HEX 1858 | -9/Exiles | Met EX-BIN 1900 | -9/Exiles | Aligned with FarCom system 1902 | -9/Exiles | Given EX-Vault access code 1936 | -9/Exiles | Opened EX-Vault 1948 | -9/Exiles | Found Trap Reconfigurator 1982 | -9/Exiles | Warned to stay clear of 0b10 Research branches 1998 | -9/Exiles | Exiles lab attacked by MAIN.C 2033 | -9/Exiles | Learned location of Zion (-6) 2144 | -9/Exiles | Discovered new exit (range 12) 2173 | -9/Exiles | Left Exiles lab with Trap Reconfigurator 2173 | -9/Exiles | Entered Mines 2286 | -8/Mines | Discovered new exit (range 15) 2335 | -8/Mines | Entered Materials 2335 | -8/Materials | Evolved 2 slots: Propulsion x1, Utility x1 2381 | -8/Materials | Build established: Hauler-Mutant 2689 | -8/Materials | Self-destructed Last Messages --------------- 02491_ Acquired Electrolaser. 02492_ K-01 Serf collects debris. 02494_ Acquired Hrd. Light Armor Plating. 02497_ K-01 Serf collects debris. 02535_ Shock Trap reprogrammed. 02543_ Triggered Shock Trap. 02543_ The floor emits a surge of raw power. 02543_ System corrupted (+1). 02559_ U-05 Engineer lays Concrete. 02575_ System corrupted: Energy discharge (-34). 02604_ K-01 Serf cleans the Hadron Collector. 02605_ Acquired Airjet. 02609_ K-01 Serf cleans the Hadron Collector. 02627_ K-01 Serf collects debris. 02647_ Triggered Blade Trap. 02647_ Massive razor-sharp blades shoot up from within the floor. 02647_ Aluminum Leg severed. 02650_ U-05 Engineer lays Concrete. 02650_ Acquired Aluminum Leg. 02666_ R-06 Scavenger collects Aluminum Leg. Map ----- +----------------------------------------------------+ | ?????????????????????????????????????????????? | | ?????????????????????????????????????????????? | | ?????????????????????????????????????????????? | | ?????????????????????????????????????????????? | | ?????????????????????????????????????????????? | | ?????????????????????????????????????????????? | | ?????????????????????????????????????????????? | | ?????????????????????????????Yw??????????????? | | ?????????????????????????????????????????????? | | ?????????????????????????????????????????????? | | ?????????????????????????????o???????????????? | | ?????????????????????????????????????????????? | | ?????????????????????????????????????????????? | | ?????????????????????????????????????????????? | | ?????????????????????????????????????????????? | | ???????????????????##??????????????#?????????? | | ???????????????????+ ????????????? T?????????? | | ???????????????????# ???????????? #?????????? | | ???????????????????# #?????????? ??????????? | | ???????????????????# #????????? ??????Y????? | | ???????????????????# #???????? ?????????????? | | ????????????????#### ##+##### #??????????????? | | ????????????????# g r^ ???????????????? | | ????????????????# ^#?????????????#???? | | ????????????????# a #???????????? #???? | | ????????????????# @^#???????????? #???? | | ????????????????# #####+#???????????? #???? | | ????????????????# #?????????????????? #???? | | ????????????????# #?????????????????? #???? | | ??????????????###+##+###???????????????? #???? | | ??????????????# #????????????####w#???? | | ??????????????# """" #########????# #???? | | ??????????????# """" ## ! #????# #????? | | ??????????????# """" ## ###### ##???? | | ??????????????# ## ! # ^ T#???? | | ??????????????# """" ## #^ #????? | | ??????????????# """" ## + | ! #????? | | ??????????????# """" ## ] # | ####### | | ??????????????# ######### | # # | | ??????????????#####+########### ^ ^ # # | | ?????????????????# # # | | ?????????????????# ########## + # | | ?????????????????+ #????????# # # | | ?????????????????# #????????# # "Y" # | | ?????????????????# #????????# ## # """ # | | ?????????????????# #????????# ## ####### | | ?????????????????# #????????# ##+####### | | ?????????????????# #????????# # # | | ?????????????????# #????????# # # | | ?????????????????# ##+####### # # | +----------------------------------------------------+ Best States ------------- Heat Dissipation 31 Energy Generation 10 Energy Capacity 250 Matter Stores 300 Matter Capacity 300 Sight Range 16 Terrain Scan Density 10 Evasion (%) 40 Recoil Reduction 2 Item Schematics ----------------- None Robot Schematics ------------------ None Fabricated ------------ Nothing Alien Tech Used ----------------- None Achievements -------------- Close Call Exterminator It Was An Accident, I Swear Challenges ------------ None Game ------ Seed ArmageddonInertialWand Manual? 0 Play Time 00:24:21 Cumulative 13.1 hours Start 2021.11.02 @ 19:44:08 End 2021.11.02 @ 20:06:06 Sessions 1 Manual Loads 0 Difficulty Rogue Special Mode None Game No. 14 Rogue 14 Adventurer 0 Explorer 0 Win Type - Total 0 Types 0/0/0/0/0/0/0/0/0 Lore% 20 Gallery% 22 Achievement% 21 Wizard Run 0 Options --------- ASCII 0 Keyboard 0 Movement Mouse Keybinds 0 Fullscreen 1 Font 18/SmallcapsGlow Map View 76x50 Tactical HUD 1 Map Filters NONE Filters NONE Steam 1 RUN: 2676112b-b162-460a-b9e7-6399135d87c5